bitfinex-derivatives/quotes_SOLF0:USTF0_20241230
["timestamp","ask_amount","ask_price","bid_price","bid_amount"]
[1735580171667,4.12,189.82,189.76,2.6393]
[1735580172158,35.19913767,189.94,189.7,19.24212537]
[1735580172363,19.24212537,189.87,189.71,5.685]
[1735580172563,23.36212537,189.87,189.71,5.685]
[1735580172966,23.36212537,189.87,189.78,2.6391]
[1735580173258,23.36212537,189.87,189.71,5.685]
[1735580173458,23.36212537,189.87,189.78,2.6391]
[1735580173658,19.24212537,189.81,189.67,23.36212537]
[1735580173863,19.24212537,189.81,189.67,4.12]
[1735580174161,23.36212537,189.81,189.73,2.6398]
[1735580174563,23.36212537,189.81,189.74,2.6397]
[1735580174865,19.24212537,189.78,189.65,4.7478]
[1735580175363,19.24212537,189.75,189.65,3.1828]
[1735580175660,23.36212537,189.75,189.65,3.1828]
[1735580176264,4.12,189.79,189.65,3.1828]
[1735580176461,4.5382,189.8,189.66,1.4924]
[1735580176867,4.5382,189.8,189.75,2.6395]
[1735580177061,4.5382,189.8,189.67,19.24212537]
[1735580177664,4.5382,189.8,189.75,2.6395]
[1735580177867,4.5382,189.8,189.66,1.4924]
[1735580178667,1.4932,189.8,189.67,19.24212537]
[1735580178867,19.24212537,189.84,189.77,2.6393]
[1735580179168,4.12,189.83,189.77,2.6393]
[1735580179663,4.12,189.83,189.67,19.24212537]
[1735580179664,19.24212537,189.81,189.68,4.12]
[1735580180367,19.24212537,189.81,189.76,2.6395]
[1735580180763,19.24212537,189.81,189.68,4.12]
[1735580181167,19.24212537,189.81,189.66,1.4924]
[1735580181365,19.24212537,189.78,189.66,1.4924]
[1735580181567,4.12,189.77,189.69,2.6404]
[1735580181767,4.12,189.77,189.65,3.1828]
[1735580182061,4.12,189.77,189.7,2.6402]
[1735580182260,19.24212537,189.75,189.65,3.1828]
[1735580182658,19.24212537,189.75,189.72,2.6399]
[1735580182869,19.24212537,189.75,189.65,3.1828]
[1735580183169,19.24212537,189.75,189.68,2.6405]
[1735580183766,19.24212537,189.75,189.57,5.6338]
[1735580183959,19.24212537,189.75,189.59,19.24212537]
[1735580184358,19.24212537,189.75,189.68,2.6405]
[1735580184559,19.24212537,189.75,189.59,19.24212537]
[1735580184763,19.24212537,189.75,189.6,4.10134981]
[1735580184969,19.24212537,189.75,189.59,19.24212537]
[1735580185267,19.24212537,189.75,189.6,4.10194417]
[1735580185470,19.24212537,189.75,189.69,2.6403]
[1735580185668,19.24212537,189.75,189.6,4.10275303]
[1735580185868,19.24212537,189.75,189.59,19.24212537]
[1735580186069,19.24212537,189.75,189.6,4.10274966]
[1735580186266,19.24212537,189.75,189.69,2.6403]
[1735580186665,4.12,189.74,189.59,19.24212537]
[1735580186963,4.12,189.74,189.6,15.17009003]
[1735580187267,4.12,189.74,189.59,19.24212537]
[1735580187468,4.12,189.74,189.6,13.40107767]
[1735580187667,4.12,189.74,189.6,4.79417891]
[1735580188068,4.12,189.74,189.69,2.6403]
[1735580188268,4.12,189.74,189.6,4.10521628]
[1735580188459,4.12,189.74,189.69,2.6403]
[1735580188664,4.12,189.74,189.6,8.90126078]
[1735580188861,4.12,189.74,189.59,19.24212537]
[1735580189065,4.12,189.74,189.7,2.6402]
[1735580189262,4.12,189.74,189.61,4.10462779]
[1735580189569,4.12,189.74,189.71,2.6401]
[1735580189756,19.24212537,189.75,189.71,2.6401]
[1735580189962,4.12,189.77,189.63,4.12]
[1735580190666,4.12,189.77,189.73,2.6398]
[1735580191166,4.12,189.77,189.63,4.12]
[1735580191468,4.12,189.77,189.72,2.64]
[1735580191669,4.12,189.77,189.63,4.12]
[1735580192571,4.12,189.77,189.73,2.6398]
[1735580193672,19.24212537,189.75,189.61,4.12]
[1735580193968,19.24212537,189.72,189.6,4.50313909]
[1735580194271,12.03963167,189.68,189.64,2.641]
[1735580194569,12.03963167,189.68,189.62,2.6413]
[1735580194965,12.03963167,189.68,189.57,3.0514]
[1735580196065,4.12,189.69,189.57,3.0514]
[1735580196371,4.12,189.69,189.58,13.4141294]
[1735580196570,4.12,189.69,189.59,4.10739381]
[1735580196864,4.12,189.73,189.61,19.2557564]
[1735580197066,4.12,189.75,189.62,4.108408]
[1735580197266,4.12,189.75,189.71,2.64]
[1735580197663,4.12,189.75,189.62,4.10828008]
[1735580197863,4.12,189.75,189.68,2.6405]
[1735580198272,19.2557564,189.74,189.67,2.6407]
[1735580198466,19.2557564,189.74,189.6,4.12]
[1735580200072,19.2557564,189.74,189.55,1.517]
[1735580200272,19.2557564,189.74,189.58,8.62106448]
[1735580200469,19.2557564,189.74,189.66,2.6408]
[1735580200674,19.2557564,189.74,189.6,4.11051298]
[1735580200874,19.2557564,189.74,189.61,4.10961809]
[1735580201173,19.2557564,189.74,189.58,11.08621353]
[1735580201376,19.2557564,189.74,189.59,13.42454265]
[1735580201574,19.2557564,189.74,189.6,4.11074882]
[1735580201770,19.2557564,189.74,189.58,6.57805301]
[1735580201969,19.2557564,189.74,189.59,8.62364273]
[1735580202174,19.2557564,189.74,189.56,6.4218548]
[1735580202375,19.2557564,189.74,189.66,2.6407]
[1735580202969,19.2557564,189.74,189.65,2.641]
[1735580203872,19.2557564,189.74,189.66,2.6408]
[1735580204472,19.2557564,189.74,189.58,20.03956534]
[1735580204775,19.2557564,189.74,189.67,2.6407]
[1735580205581,19.2557564,189.74,189.57,15.23256209]
[1735580205780,19.2557564,189.71,189.65,2.6409]
[1735580205979,4.12,189.75,189.59,9.33270385]
[1735580206185,19.2557564,189.75,189.69,2.6403]
[1735580206385,3.98,189.75,189.61,34.48101596]
[1735580206577,23.2357564,189.75,189.62,13.44922234]
[1735580206779,23.2357564,189.75,189.67,2.6406]
[1735580206982,23.2357564,189.75,189.6,3.0285]
[1735580207181,23.2357564,189.75,189.61,20.0409697]
[1735580207485,23.2357564,189.75,189.6,3.0285]
[1735580207486,23.2357564,189.75,189.62,4.11880714]
[1735580207680,23.2357564,189.75,189.6,3.0285]
[1735580207879,23.2357564,189.75,189.67,2.6406]
[1735580208588,23.2357564,189.75,189.68,2.6406]
[1735580209084,23.2357564,189.75,189.6,3.0285]
[1735580209290,23.2357564,189.75,189.69,2.6403]
[1735580209988,23.2357564,189.75,189.61,1.5594]
[1735580210287,23.2357564,189.75,189.68,2.6406]
[1735580211285,23.2357564,189.75,189.62,4.11542467]
[1735580211489,23.2357564,189.75,189.69,2.6404]
[1735580211688,23.2357564,189.75,189.62,4.11621619]
[1735580211890,19.2557564,189.69,189.65,2.6409]
[1735580212185,3.98,189.68,189.56,2.3018548]
[1735580212391,3.98,189.68,189.57,20.04111106]
[1735580212590,3.98,189.68,189.58,20.04111106]
[1735580212886,3.98,189.68,189.59,8.93092739]
[1735580213092,3.98,189.68,189.64,2.6411]
[1735580213487,3.98,189.68,189.57,20.04239072]
[1735580213786,19.2557564,189.66,189.61,2.6414]
[1735580215387,19.2557564,189.66,189.56,2.3018548]
[1735580215694,19.2557564,189.66,189.62,2.6414]
[1735580216190,19.2557564,189.66,189.61,2.6415]
[1735580216490,19.2557564,189.66,189.56,2.3018548]
[1735580216792,4.6421,189.67,189.56,2.3018548]
[1735580217091,4.6421,189.67,189.57,8.92413911]
[1735580217292,4.6421,189.67,189.57,4.80831122]
[1735580217492,4.6421,189.67,189.56,2.3018548]
[1735580217681,19.2557564,189.66,189.6,2.6417]
[1735580218289,12.04353386,189.65,189.56,2.3018548]
[1735580218590,12.04353386,189.65,189.61,2.6415]
[1735580218982,12.04353386,189.65,189.56,2.3018548]
[1735580219195,12.04353386,189.62,189.56,2.3018548]
[1735580219492,4.6421,189.67,189.56,2.3018548]
[1735580219493,12.04353386,189.65,189.56,2.3018548]
[1735580219885,12.04353386,189.65,189.57,13.45093306]
[1735580220086,12.04353386,189.65,189.58,13.45042354]
[1735580220291,4.6421,189.67,189.63,2.6412]
[1735580220491,4.6421,189.67,189.56,14.34538866]
[1735580220697,4.6421,189.67,189.57,15.22509491]
[1735580220890,4.6421,189.67,189.64,2.641]
[1735580221097,4.6421,189.67,189.59,4.11784316]
[1735580221299,4.6421,189.67,189.59,2.6418]
[1735580221598,4.6421,189.67,189.56,14.34538866]
[1735580221799,4.6421,189.67,189.57,20.03984715]
[1735580222095,4.6421,189.67,189.58,13.44998604]
[1735580222292,4.6421,189.67,189.59,8.92998805]
[1735580222498,4.6421,189.67,189.6,4.11866319]
[1735580222699,4.6421,189.67,189.59,4.81132486]
[1735580222700,4.6421,189.67,189.64,2.6411]
[1735580223090,4.6421,189.67,189.63,2.6412]
[1735580223294,4.6421,189.67,189.58,4.81361126]
[1735580223595,12.04353386,189.72,189.68,2.6405]
[1735580223896,16.02353386,189.72,189.6,20.05030942]
[1735580224103,16.02353386,189.72,189.61,20.05030942]
[1735580224296,12.04353386,189.72,189.62,20.04891511]
[1735580224496,4.5633,189.76,189.65,12.04353386]
[1735580224801,4.5633,189.76,189.66,4.12102286]
[1735580224995,4.5633,189.76,189.72,2.64]
[1735580225395,1.5086,189.76,189.68,12.04353386]
[1735580225596,14.61662,189.77,189.75,2.6396]
[1735580225799,14.61662,189.77,189.66,1.4753]
[1735580226001,12.04353386,189.76,189.71,2.6401]
[1735580226306,12.04353386,189.76,189.66,1.4753]
[1735580226508,18.59662,189.77,189.67,8.93725695]
[1735580226809,18.59662,189.77,189.66,1.4753]
[1735580227306,18.59662,189.77,189.71,2.6401]
[1735580227705,18.59662,189.77,189.66,1.4753]
[1735580227904,12.04353386,189.74,189.61,12.04353386]
[1735580228097,12.04353386,189.71,189.62,8.65021076]
[1735580228304,7.1106,189.7,189.64,2.641]
[1735580228803,7.1106,189.7,189.65,2.641]
[1735580229004,7.1106,189.7,189.6,52.42197286]
[1735580229301,3.98,189.7,189.61,20.06971207]
[1735580229500,1.562,189.73,189.62,39.33028462]
[1735580229701,3.1306,189.76,189.63,20.06971207]
[1735580230005,3.98,189.75,189.64,13.47029128]
[1735580230207,3.98,189.75,189.65,8.94384814]
[1735580230405,3.98,189.75,189.65,4.81921015]
[1735580230713,3.98,189.75,189.68,2.6406]
[1735580231208,3.98,189.75,189.62,19.26057255]
[1735580231509,3.98,189.75,189.69,2.6403]
[1735580231904,3.98,189.75,189.62,19.26057255]
[1735580232099,3.98,189.75,189.63,8.5925517]
[1735580232301,3.98,189.75,189.64,8.59158482]
[1735580232501,3.98,189.75,189.64,4.81816227]
[1735580232712,3.98,189.75,189.62,19.26057255]
[1735580232713,23.24057255,189.75,189.67,2.6406]
[1735580233010,3.98,189.75,189.61,6.50723967]
[1735580233211,3.1306,189.76,189.62,39.1782445]
[1735580233408,3.9,189.75,189.63,4.8184927]
[1735580233609,3.9,189.75,189.64,4.06546212]
[1735580233914,3.9,189.75,189.71,2.6401]
[1735580234211,3.9,189.75,189.65,4.8184927]
[1735580234411,3.9,189.75,189.62,19.26057255]
[1735580234613,3.9,189.75,189.63,19.91502877]
[1735580234909,3.9,189.75,189.64,19.91502877]
[1735580235108,3.9,189.75,189.71,2.6401]
[1735580236205,3.9,189.75,189.68,2.6406]
[1735580236513,3.9,189.75,189.62,19.26057255]
[1735580236814,14.61662,189.77,189.68,19.26057255]
[1735580237007,14.61662,189.77,189.68,23.16057255]
[1735580237202,14.61662,189.77,189.69,3.1046]
[1735580238411,14.61662,189.77,189.74,2.6397]
[1735580239203,14.61662,189.77,189.76,2.6395]
[1735580240602,9.72322,189.77,189.76,2.6395]
[1735580241107,3.45932,189.77,189.76,2.6395]
[1735580241309,3.1133,189.88,189.74,23.16057255]
[1735580241615,3.1133,189.88,189.77,19.26057255]
[1735580241808,3.1133,189.88,189.85,2.6381]
[1735580242309,3.1133,189.88,189.83,2.6385]
[1735580242502,3.1133,189.88,189.73,8.56220779]
[1735580242708,3.1133,189.88,189.74,3.9]
[1735580243005,3.1133,189.88,189.72,19.26057255]
[1735580243212,3.1133,189.88,189.73,3.9]
[1735580243712,19.26057255,189.86,189.72,19.26057255]
[1735580243905,3.1133,189.88,189.73,3.9]
[1735580244105,3.1133,189.88,189.8,2.6388]
[1735580244311,3.1133,189.88,189.75,19.26057255]
[1735580244711,3.1133,189.88,189.83,2.6385]
[1735580244913,3.1133,189.88,189.75,19.26057255]
[1735580245914,3.1133,189.88,189.78,2.6391]
[1735580246214,1.4819,189.88,189.75,19.26057255]
[1735580246505,54.86,190.07,189.84,19.26057255]
[1735580246709,58.68026071,189.99,189.85,3.9]
[1735580247108,58.68026071,189.99,189.88,2.6377]
[1735580247314,19.26057255,189.99,189.84,23.16057255]
[1735580248311,3.1286,190.0,189.87,19.26057255]
[1735580248707,3.1286,190.0,189.94,2.6369]
[1735580248908,3.1286,190.0,189.87,19.26057255]
[1735580249312,3.1286,190.0,189.85,3.9]
[1735580249515,3.1286,190.0,189.84,19.26057255]
[1735580250406,19.26057255,189.98,189.88,2.6377]
[1735580250603,3.9,189.97,189.88,2.6377]
[1735580250812,3.9,189.97,189.82,3.9]
[1735580251512,3.9,189.97,189.88,2.6377]
[1735580251713,3.9,189.97,189.82,3.9]
[1735580252111,3.9,189.97,189.88,2.6377]
[1735580252311,19.26057255,189.98,189.88,2.6377]
[1735580252507,3.9,189.97,189.88,2.6377]
[1735580253113,3.9,189.97,189.87,2.6379]
[1735580253314,3.9,189.97,189.81,23.16057255]
[1735580253709,3.9,189.97,189.91,2.6374]
[1735580254015,3.9,189.97,189.84,19.26057255]
[1735580254208,3.9,189.97,189.89,2.6375]
[1735580254410,3.9,189.97,189.84,19.26057255]
[1735580254918,3.9,189.97,189.89,2.6376]
[1735580255117,3.9,189.97,189.84,19.26057255]
[1735580255618,3.9,189.97,189.9,2.6375]
[1735580255811,3.9,189.97,189.84,19.26057255]
[1735580256012,3.9,189.97,189.83,3.9]
[1735580256211,3.9,189.97,189.81,23.16057255]
[1735580256911,3.1286,190.0,189.84,19.26057255]
[1735580257115,3.1286,190.0,189.87,19.26057255]
[1735580257619,3.1286,190.0,189.94,2.6368]
[1735580257816,3.1286,190.0,189.87,23.16057255]
[1735580258010,110.37158481,190.13,189.9,19.26057255]
[1735580258312,11.99468617,190.05,189.92,11.99468617]
[1735580258713,11.99468617,190.05,189.99,2.6363]
[1735580258910,11.99468617,190.02,189.82,6.42178974]
[1735580259113,15.89468617,190.02,189.89,11.99468617]
[1735580259311,3.9,190.02,189.92,11.99468617]
[1735580260315,3.9,190.02,189.91,3.9]
[1735580261115,3.9,190.02,189.9,3.88]
[1735580261317,3.9,190.02,189.95,2.6367]
[1735580261513,19.19558929,190.05,189.95,2.6367]
[1735580261723,1.4865,190.06,189.99,2.6362]
[1735580261916,1.4865,190.06,189.91,19.19558929]
[1735580262114,1.4865,190.06,189.92,3.88]
[1735580262317,20.68208929,190.06,189.95,2.6368]
[1735580263121,20.68208929,190.06,189.92,3.88]
[1735580263416,20.68208929,190.06,189.88,19.19558929]
[1735580263620,19.19558929,190.03,189.86,3.98350587]
[1735580263921,19.19558929,190.0,189.86,7.86350587]
[1735580264116,3.1442,189.99,189.86,7.86350587]
[1735580264421,3.1442,189.99,189.86,3.98350587]
[1735580264721,1.5333,189.98,189.9,2.6374]
[1735580265325,1.5333,189.98,189.91,2.6374]
[1735580265621,1.5333,189.98,189.86,3.98350587]
[1735580266618,1.5333,189.98,189.92,2.6372]
[1735580267023,1.5333,189.98,189.86,3.98350587]
[1735580267228,5.4133,189.98,189.9,2.6374]
[1735580267820,5.4133,189.98,189.91,2.6374]
[1735580268022,5.4133,189.98,189.86,3.98350587]
[1735580269323,5.4133,189.98,189.92,2.6371]
[1735580269725,5.4133,189.98,189.86,3.98350587]
[1735580270828,3.88,190.02,189.88,19.19558929]
[1735580271023,3.88,190.03,189.91,19.19558929]
[1735580271218,3.88,190.03,189.94,2.6368]
[1735580271424,3.88,190.03,189.91,19.19558929]
[1735580271626,1.5671,190.02,189.91,19.19558929]
[1735580272227,3.88,190.03,189.91,19.19558929]
[1735580272727,3.88,190.05,189.9,3.88]
[1735580273127,3.88,190.05,189.92,19.19558929]
[1735580273829,3.88,190.05,189.99,2.6361]
[1735580274028,1.5671,190.06,189.92,19.19558929]
[1735580274230,1.5671,190.06,190.0,2.636]
[1735580274533,1.5573,190.11,189.96,3.88]
[1735580274830,3.1737,190.1,190.0,2.6359]
[1735580275928,3.1737,190.1,189.99,2.6359]
[1735580276423,19.19558929,190.09,189.92,19.19558929]
[1735580276624,7.0537,190.1,189.94,3.88]
[1735580277131,3.1737,190.1,189.94,3.88]
[1735580277439,3.88,190.09,189.98,19.19558929]
[1735580277732,3.1737,190.1,189.98,19.19558929]
[1735580277924,3.1737,190.1,190.04,2.6352]
[1735580278232,3.1737,190.1,189.98,19.19558929]
[1735580278429,3.1737,190.1,190.07,2.635]
[1735580278625,23.09355415,190.13,190.04,19.19558929]
[1735580279022,23.09355415,190.13,190.06,2.635]
[1735580279222,23.09355415,190.13,190.02,3.88]
[1735580279424,23.09355415,190.13,190.01,19.19558929]
[1735580279927,23.09355415,190.13,190.04,19.19558929]
[1735580280127,23.09355415,190.13,190.1,2.6345]
[1735580280634,23.09355415,190.13,190.09,2.6347]
[1735580280935,23.09355415,190.13,190.05,3.88]
[1735580281725,23.09355415,190.13,190.04,19.19558929]
[1735580282131,23.09355415,190.13,190.04,23.07558929]
[1735580282332,23.09355415,190.13,190.06,2.635]
[1735580282527,23.09355415,190.13,190.04,17.19109897]
[1735580282834,23.09355415,190.13,190.06,2.6349]
[1735580283030,23.09355415,190.13,190.04,17.19109897]
[1735580283429,23.09355415,190.13,190.08,2.6348]
[1735580283628,23.09355415,190.13,190.07,13.31109897]
[1735580283934,23.09355415,190.13,190.11,2.6344]
[1735580286142,23.09355415,190.13,190.08,2.6347]
[1735580286434,23.09355415,190.13,190.07,13.31109897]
[1735580288134,23.09355415,190.13,190.1,2.6345]
[1735580288638,23.09355415,190.13,189.96,5.273]
[1735580288833,23.09355415,190.13,190.04,13.31109897]
[1735580290736,23.09355415,190.13,190.07,13.31109897]
[1735580291234,23.09355415,190.13,190.1,13.31109897]
[1735580292230,23.09355415,190.13,190.12,2.6343]
[1735580292431,17.15109897,190.24,190.1,13.31109897]
[1735580292631,3.84,190.24,190.15,13.31109897]
[1735580292828,3.0487,190.23,190.16,2.6337]
[1735580293337,3.0487,190.23,190.13,2.634]
[1735580293527,3.0487,190.23,190.09,3.84]
[1735580293528,13.31109897,190.21,190.09,13.31109897]
[1735580293931,13.31109897,190.21,190.1,2.6344]
[1735580294130,13.31109897,190.21,190.06,13.31109897]
[1735580294333,13.31109897,190.18,190.06,13.31109897]
[1735580294530,17.15109897,190.18,190.06,13.31109897]
[1735580294937,17.15109897,190.18,190.07,2.6348]
[1735580296138,17.15109897,190.18,190.08,2.6347]
[1735580297135,17.15109897,190.18,190.06,13.31109897]
[1735580298845,17.15109897,190.18,190.11,2.6343]
[1735580300738,3.84,190.18,190.11,2.6343]
[1735580300946,13.31109897,190.2,190.12,2.6342]
[1735580301242,3.84,190.22,190.12,13.31109897]
[1735580301634,3.84,190.22,190.18,2.6334]
[1735580301846,3.84,190.22,190.12,13.31109897]
[1735580302040,3.84,190.22,190.17,2.6336]
[1735580302235,3.84,190.22,190.12,13.31109897]
[1735580302745,4.554,190.23,190.18,2.6333]
[1735580302944,4.554,190.23,190.15,13.31109897]
[1735580303742,4.554,190.23,190.18,2.6333]
[1735580303951,3.0487,190.23,190.18,13.31109897]
[1735580304338,13.31109897,190.29,190.21,2.6329]
[1735580304544,17.15109897,190.29,190.18,13.31109897]
[1735580305350,17.15109897,190.29,190.22,2.6328]
[1735580306749,3.84,190.29,190.24,2.6326]
[1735580306943,3.0786,190.3,190.21,13.31109897]
[1735580307139,17.15109897,190.32,190.21,13.31109897]
[1735580307140,21.81950766,190.38,190.26,2.6323]
[1735580307449,28.70620766,190.38,190.27,13.31109897]
[1735580307845,24.86620766,190.38,190.27,13.31109897]
[1735580308250,24.86620766,190.38,190.25,21.24584381]
[1735580308647,24.86620766,190.38,190.31,21.24584381]
[1735580308847,21.81950766,190.38,190.34,21.24584381]
[1735580309049,3.0177,190.47,190.34,21.24584381]
[1735580309446,6.8577,190.47,190.34,21.24584381]
[1735580310352,6.8577,190.47,190.38,2.6307]
[1735580311354,3.0177,190.47,190.38,2.6307]
[1735580311553,3.0177,190.47,190.31,21.24584381]
[1735580311849,21.24584381,190.44,190.28,21.24584381]
[1735580312049,21.24584381,190.41,190.29,2.6319]
[1735580312248,3.84,190.4,190.27,3.84]
[1735580312453,1.5558,190.39,190.28,21.24584381]
[1735580313249,1.5558,190.39,190.34,2.6313]
[1735580314154,1.5431,190.47,190.34,21.24584381]
[1735580314354,1.5558,190.46,190.34,21.24584381]
[1735580314750,1.5558,190.46,190.33,3.84]
[1735580314951,1.5558,190.46,190.36,2.631]
[1735580315148,1.5558,190.46,190.31,21.24584381]
[1735580316748,1.5558,190.46,190.38,2.6306]
[1735580316944,1.5558,190.46,190.31,21.24584381]
[1735580317150,1.5558,190.46,190.34,21.24584381]
[1735580317551,1.5558,190.46,190.35,3.84]
[1735580318153,1.5558,190.46,190.39,2.6305]
[1735580318348,1.5558,190.46,190.22,2.29388475]
[1735580318349,1.5558,190.46,190.33,3.84]
[1735580319451,21.24584381,190.44,190.33,3.84]
[1735580319754,3.84,190.43,190.29,3.84]
[1735580320253,3.84,190.43,190.31,21.24584381]
[1735580321258,3.84,190.43,190.36,2.6309]
[1735580321854,1.5558,190.46,190.31,21.24584381]
[1735580322057,1.5558,190.46,190.29,3.84]
[1735580322058,5.5558,190.46,190.34,21.24584381]
[1735580322361,1.5558,190.46,190.35,4.0]
[1735580322559,1.5558,190.46,190.37,21.24584381]
[1735580322858,4.0,190.5,190.37,21.24584381]
[1735580323057,4.0,190.5,190.44,2.6297]
[1735580323259,3.1601,190.52,190.37,21.24584381]
[1735580323652,3.1601,190.52,190.41,2.6302]
[1735580323850,3.1601,190.52,190.37,21.24584381]
[1735580324156,3.1601,190.52,190.46,2.6295]
[1735580325350,3.1601,190.52,190.4,21.24584381]
[1735580325555,3.1601,190.52,190.37,21.24584381]
[1735580326362,3.1601,190.52,190.34,21.24584381]
[1735580326564,3.1601,190.52,190.4,21.24584381]
[1735580327658,3.1601,190.52,190.29,5.2638]
[1735580327659,21.24584381,190.51,190.41,2.6303]
[1735580327860,21.24584381,190.51,190.34,25.24584381]
[1735580328059,4.0,190.5,190.37,21.24584381]
[1735580328268,4.0,190.5,190.44,2.6299]
[1735580328660,4.0,190.5,190.37,21.24584381]
[1735580329363,3.1601,190.52,190.4,21.24584381]
[1735580329661,3.1601,190.52,190.4,25.24584381]
[1735580329962,54.68,190.68,190.49,2.629]
[1735580330156,21.24584381,190.6,190.43,21.24584381]
[1735580330360,8.4455,190.59,190.43,21.24584381]
[1735580330860,8.4455,190.59,190.49,2.629]
[1735580331057,8.4455,190.59,190.43,21.24584381]
[1735580331253,4.4455,190.59,190.4,4.0]
[1735580331564,4.4455,190.59,190.42,21.24584381]
[1735580331565,4.0,190.58,190.42,21.24584381]
[1735580332666,4.0,190.57,190.48,2.6292]
[1735580333263,4.0,190.57,190.47,2.6294]
[1735580333463,4.0,190.57,190.42,21.24584381]
[1735580333764,25.24584381,190.57,190.46,2.6295]
[1735580333964,25.24584381,190.57,190.42,21.24584381]
[1735580334357,25.24584381,190.57,190.45,2.6295]
[1735580334664,25.24584381,190.57,190.42,21.24584381]
[1735580334865,25.24584381,190.57,190.47,2.6294]
[1735580335066,25.24584381,190.57,190.42,21.24584381]
[1735580335663,4.0,190.56,190.42,21.24584381]
[1735580336169,4.4455,190.59,190.48,21.24584381]
[1735580336765,4.4455,190.59,190.46,4.0]
[1735580336960,4.4455,190.59,190.48,21.24584381]
[1735580337164,2.9717,190.59,190.48,21.24584381]
[1735580337858,1.4808,190.59,190.51,21.24584381]
[1735580338065,4.0,190.62,190.51,21.24584381]
[1735580338562,4.0,190.62,190.55,2.6282]
[1735580339260,4.0,190.62,190.51,21.24584381]
[1735580339563,3.1068,190.64,190.51,21.24584381]
[1735580339762,3.1068,190.64,190.46,4.0]
[1735580339963,7.1068,190.64,190.5,21.24584381]
[1735580340467,7.1068,190.64,190.55,2.6283]
[1735580341660,7.1068,190.64,190.56,2.6281]
[1735580341866,7.1068,190.64,190.47,0.25611]
[1735580341867,21.24584381,190.63,190.47,0.25611]
[1735580342871,21.24584381,190.6,190.47,0.25611]
[1735580343267,21.24584381,190.6,190.5,2.6288]
[1735580343664,21.24584381,190.6,190.47,0.25611]
[1735580344365,13.25050614,190.59,190.47,13.50661614]
[1735580344574,13.25050614,190.59,190.53,2.6285]
[1735580344772,13.25050614,190.59,190.47,13.50661614]
[1735580345373,13.25050614,190.59,190.54,2.6283]
[1735580345673,3.1068,190.64,190.5,13.25050614]
[1735580345878,7.1068,190.64,190.57,2.6279]
[1735580346374,13.25050614,190.62,190.47,4.25611]
[1735580346568,13.25050614,190.62,190.5,13.25050614]
[1735580346769,7.1068,190.64,190.53,13.25050614]
[1735580347175,13.25050614,190.62,190.47,4.25611]
[1735580347374,13.25050614,190.62,190.49,13.25050614]
[1735580347577,13.25050614,190.62,190.53,2.6285]
[1735580348076,13.25050614,190.62,190.56,2.628]
[1735580348278,7.1068,190.64,190.52,13.25050614]
[1735580348573,13.25050614,190.63,190.54,2.6283]
[1735580349173,13.25050614,190.63,190.55,2.6282]
[1735580349372,13.25050614,190.63,190.49,13.25050614]
[1735580349672,13.25050614,190.63,190.53,2.6285]
[1735580349970,13.25050614,190.6,190.47,13.50661614]
[1735580350373,13.25050614,190.6,190.52,2.6286]
[1735580351479,13.25050614,190.54,190.47,0.25611]
[1735580352085,13.25050614,190.54,190.48,2.6291]
[1735580352286,13.25050614,190.51,190.47,0.25611]
[1735580352685,1.5563,190.53,190.47,0.25611]
[1735580352881,5.7363,190.53,190.47,0.25611]
[1735580354483,5.7363,190.53,190.48,2.6291]
[1735580354686,5.7363,190.53,190.47,0.25611]
[1735580355689,1.5563,190.53,190.47,2.88541]
[1735580356081,13.25050614,190.52,190.47,0.25611]
[1735580356288,13.25050614,190.49,190.38,13.25050614]
[1735580356485,17.43050614,190.49,190.38,13.25050614]
[1735580356883,17.43050614,190.49,190.36,2.29205024]
[1735580357382,13.25050614,190.46,190.37,2.6307]
[1735580357579,3.1404,190.45,190.32,13.25050614]
[1735580358088,13.25050614,190.43,190.32,13.25050614]
[1735580358391,3.1404,190.45,190.29,2.6318]
[1735580358392,13.25050614,190.4,190.29,2.6318]